[Event "January 2 Late 2024"]
[Site "https://www.chess.com"]
[Date "2024.01.02"]
[Round "7"]
[White "Gulamali, Kazim"]
[Black "Korchmar, Vasiliy"]
[Result "1-0"]
[Board "52"]
[TimeControl "180+1"]
[WhiteFideId "2024764"]
[BlackFideId "24131750"]
[WhiteElo "2551"]
[BlackElo "2743"]
[WhiteTeam "USA"]
[BlackTeam "RUS"]
[WhiteClock "0:00:06"]
[BlackClock "0:00:00"]

1. e4 {[%clk 0:03:00]}  c5 {[%clk 0:02:59]} 2. d4 {[%clk 0:03:00]}  cxd4 {[%clk 0:02:59]} 3. Nf3 {[%clk 0:03:01]}  d6 {[%clk 0:02:58]} 4. Nxd4 {[%clk 0:03:01]}  Nf6 {[%clk 0:02:58]} 5. Nc3 {[%clk 0:03:02]}  Nc6 {[%clk 0:02:58]} 6. Bb5 {[%clk 0:02:33]}  Bd7 {[%clk 0:02:58]} 7. Bg5 {[%clk 0:02:33]}  e6 {[%clk 0:02:51]} 8. O-O {[%clk 0:02:21]}  Be7 {[%clk 0:02:51]} 9. Qd3 {[%clk 0:02:20]}  O-O {[%clk 0:02:42]} 10. Rad1 {[%clk 0:02:19]}  a6 {[%clk 0:02:14]} 11. Bxc6 {[%clk 0:02:09]}  bxc6 {[%clk 0:02:15]} 12. e5 {[%clk 0:01:41]}  dxe5 {[%clk 0:02:14]} 13. Nf3 {[%clk 0:01:42]}  Nd5 {[%clk 0:01:53]} 14. Bxe7 {[%clk 0:01:39]}  Qxe7 {[%clk 0:01:54]} 15. Nxe5 {[%clk 0:01:39]}  Rfd8 {[%clk 0:01:43]} 16. Ne4 {[%clk 0:01:27]}  Be8 {[%clk 0:01:25]} 17. c4 {[%clk 0:01:17]}  Nb4 {[%clk 0:01:19]} 18. Qb3 {[%clk 0:00:54]}  c5 {[%clk 0:01:13]} 19. Qe3 {[%clk 0:00:52]}  Rac8 {[%clk 0:00:44]} 20. Rxd8 {[%clk 0:00:29]}  Qxd8 {[%clk 0:00:45]} 21. Nxc5 {[%clk 0:00:29]}  Nc2 {[%clk 0:00:45]} 22. Qd3 {[%clk 0:00:29]}  Qg5 {[%clk 0:00:20]} 23. Ned7 {[%clk 0:00:17]}  Nb4 {[%clk 0:00:14]} 24. Qd6 {[%clk 0:00:13]}  Bxd7 {[%clk 0:00:04]} 25. Nxd7 {[%clk 0:00:14]}  a5 {[%clk 0:00:03]} 26. a3 {[%clk 0:00:09]}  Nc6 {[%clk 0:00:03]} 27. Nb6 {[%clk 0:00:10]}  Rd8 {[%clk 0:00:01]} 28. Qxc6 {[%clk 0:00:09]}  h5 {[%clk 0:00:02]} 29. c5 {[%clk 0:00:07]}  Rd2 {[%clk 0:00:02]} 30. Nc4 {[%clk 0:00:07]}  Rc2 {[%clk 0:00:01]} 31. Qe8+ {[%clk 0:00:07]}  Kh7 {[%clk 0:00:01]} 32. Ne3 {[%clk 0:00:07]}  Rxb2 {[%clk 0:00:01]} 33. c6 {[%clk 0:00:07]}  Qf4 {[%clk 0:00:00]} 34. g3 {[%clk 0:00:06]} 1-0

[Event "January 2 Late 2024"]
[Site "https://www.chess.com"]
[Date "2024.01.02"]
[Round "7"]
[White "Silva, Kaua Marques"]
[Black "Msellek, Ilyass"]
[Result "0-1"]
[Board "53"]
[TimeControl "180+1"]
[WhiteFideId "22701168"]
[BlackFideId "675938"]
[WhiteElo "2547"]
[BlackElo "2741"]
[WhiteTeam "BRA"]
[BlackTeam "MAR"]
[WhiteClock "0:00:20"]
[BlackClock "0:01:52"]

1. e4 {[%clk 0:03:00]}  Nf6 {[%clk 0:03:00]} 2. Nc3 {[%clk 0:02:58]}  d5 {[%clk 0:02:59]} 3. e5 {[%clk 0:02:58]}  Nfd7 {[%clk 0:02:59]} 4. d4 {[%clk 0:02:58]}  c5 {[%clk 0:02:58]} 5. Nxd5 {[%clk 0:02:52]}  cxd4 {[%clk 0:02:56]} 6. Qxd4 {[%clk 0:02:49]}  Nb6 {[%clk 0:02:55]} 7. Bb5+ {[%clk 0:02:34]}  Nc6 {[%clk 0:02:53]} 8. c4 {[%clk 0:02:21]}  e6 {[%clk 0:02:51]} 9. Bg5 {[%clk 0:02:04]}  Qd7 {[%clk 0:02:49]} 10. O-O-O {[%clk 0:01:05]}  exd5 {[%clk 0:02:28]} 11. e6 {[%clk 0:01:01]}  fxe6 {[%clk 0:02:25]} 12. Qg4 {[%clk 0:00:46]}  a6 {[%clk 0:02:11]} 13. cxd5 {[%clk 0:00:46]}  Nxd5 {[%clk 0:02:06]} 14. Bd3 {[%clk 0:00:42]}  Ne5 {[%clk 0:02:00]} 15. Qe4 {[%clk 0:00:29]}  Nxd3+ {[%clk 0:01:56]} 16. Rxd3 {[%clk 0:00:29]}  Qc6+ {[%clk 0:01:52]} 17. Kb1 {[%clk 0:00:20]}  Nc3+ {[%clk 0:01:52]} 0-1

[Event "January 2 Late 2024"]
[Site "https://www.chess.com"]
[Date "2024.01.02"]
[Round "7"]
[White "Ferreira, Vitor Hugo Vieira"]
[Black "Lewtak, Damian"]
[Result "1-0"]
[Board "55"]
[TimeControl "180+1"]
[WhiteFideId "2119765"]
[BlackFideId "1141724"]
[WhiteElo "2544"]
[BlackElo "2723"]
[WhiteTeam "BRA"]
[BlackTeam "POL"]
[WhiteClock "0:01:34"]
[BlackClock "0:00:21"]

1. c4 {[%clk 0:03:00]}  e5 {[%clk 0:02:58]} 2. g3 {[%clk 0:03:00]}  Nf6 {[%clk 0:02:58]} 3. Bg2 {[%clk 0:02:59]}  d5 {[%clk 0:02:59]} 4. cxd5 {[%clk 0:02:59]}  Nxd5 {[%clk 0:03:00]} 5. Nf3 {[%clk 0:02:58]}  Nc6 {[%clk 0:03:00]} 6. O-O {[%clk 0:02:58]}  Be7 {[%clk 0:02:59]} 7. d4 {[%clk 0:02:44]}  e4 {[%clk 0:02:51]} 8. Ne5 {[%clk 0:02:45]}  f5 {[%clk 0:02:43]} 9. Nxc6 {[%clk 0:02:38]}  bxc6 {[%clk 0:02:44]} 10. f3 {[%clk 0:02:36]}  exf3 {[%clk 0:02:37]} 11. Bxf3 {[%clk 0:02:35]}  O-O {[%clk 0:02:36]} 12. Nc3 {[%clk 0:02:34]}  Be6 {[%clk 0:02:35]} 13. Qa4 {[%clk 0:02:32]}  Qd7 {[%clk 0:02:28]} 14. Bd2 {[%clk 0:02:25]}  Bf6 {[%clk 0:02:20]} 15. Rac1 {[%clk 0:02:22]}  Rad8 {[%clk 0:02:03]} 16. Nxd5 {[%clk 0:02:20]}  cxd5 {[%clk 0:01:53]} 17. Qxd7 {[%clk 0:02:19]}  Rxd7 {[%clk 0:01:52]} 18. e3 {[%clk 0:02:16]}  Rb8 {[%clk 0:01:47]} 19. b3 {[%clk 0:02:16]}  Be7 {[%clk 0:01:36]} 20. Rc6 {[%clk 0:02:13]}  Bd6 {[%clk 0:01:35]} 21. Rfc1 {[%clk 0:02:11]}  g5 {[%clk 0:01:23]} 22. Ba5 {[%clk 0:02:10]}  Rb7 {[%clk 0:01:17]} 23. Be2 {[%clk 0:02:10]}  Kf7 {[%clk 0:00:58]} 24. Ba6 {[%clk 0:02:09]}  Rb8 {[%clk 0:00:59]} 25. Bxc7 {[%clk 0:02:09]}  Bxc7 {[%clk 0:00:59]} 26. Rxc7 {[%clk 0:02:10]}  Ke7 {[%clk 0:00:52]} 27. R1c6 {[%clk 0:01:50]}  h5 {[%clk 0:00:41]} 28. Rxe6+ {[%clk 0:01:47]}  Kxe6 {[%clk 0:00:40]} 29. Bc8 {[%clk 0:01:47]}  Rxc8 {[%clk 0:00:39]} 30. Rxc8 {[%clk 0:01:46]}  g4 {[%clk 0:00:36]} 31. Kf2 {[%clk 0:01:39]}  Rh7 {[%clk 0:00:35]} 32. Rc6+ {[%clk 0:01:35]}  Ke7 {[%clk 0:00:21]} 33. Rc7+ {[%clk 0:01:34]} 1-0

[Event "January 2 Late 2024"]
[Site "https://www.chess.com"]
[Date "2024.01.02"]
[Round "7"]
[White "Schnaider, Ilan"]
[Black "Gasparyan, David"]
[Result "1-0"]
[Board "56"]
[TimeControl "180+1"]
[WhiteFideId "169013"]
[BlackFideId "13311980"]
[WhiteElo "2723"]
[BlackElo "2536"]
[WhiteTeam "ARG"]
[BlackTeam "USA"]
[WhiteClock "0:00:45"]
[BlackClock "0:00:00"]

1. d4 {[%clk 0:03:00]}  Nf6 {[%clk 0:02:58]} 2. Nf3 {[%clk 0:03:00]}  e6 {[%clk 0:02:57]} 3. g3 {[%clk 0:03:01]}  d5 {[%clk 0:02:57]} 4. Bg2 {[%clk 0:03:01]}  Be7 {[%clk 0:02:57]} 5. O-O {[%clk 0:03:01]}  O-O {[%clk 0:02:57]} 6. c4 {[%clk 0:03:02]}  c6 {[%clk 0:02:56]} 7. Qc2 {[%clk 0:03:00]}  Nbd7 {[%clk 0:02:56]} 8. b3 {[%clk 0:02:59]}  b6 {[%clk 0:02:45]} 9. Bb2 {[%clk 0:02:55]}  Bb7 {[%clk 0:02:44]} 10. Nc3 {[%clk 0:02:54]}  Rc8 {[%clk 0:02:43]} 11. Rad1 {[%clk 0:02:51]}  Re8 {[%clk 0:02:40]} 12. e4 {[%clk 0:02:50]}  dxe4 {[%clk 0:02:39]} 13. Nxe4 {[%clk 0:02:51]}  Nxe4 {[%clk 0:02:37]} 14. Qxe4 {[%clk 0:02:51]}  Nf6 {[%clk 0:02:37]} 15. Qc2 {[%clk 0:02:51]}  Qc7 {[%clk 0:02:34]} 16. Rfe1 {[%clk 0:02:50]}  Bb4 {[%clk 0:02:31]} 17. Re3 {[%clk 0:02:46]}  Rcd8 {[%clk 0:02:28]} 18. Red3 {[%clk 0:02:45]}  c5 {[%clk 0:02:23]} 19. d5 {[%clk 0:02:45]}  exd5 {[%clk 0:02:17]} 20. Bxf6 {[%clk 0:02:45]}  gxf6 {[%clk 0:02:18]} 21. cxd5 {[%clk 0:02:45]}  Ba6 {[%clk 0:02:16]} 22. d6 {[%clk 0:02:42]}  Qd7 {[%clk 0:02:14]} 23. Rd5 {[%clk 0:02:40]}  Re2 {[%clk 0:01:57]} 24. Qb1 {[%clk 0:02:38]}  Bb7 {[%clk 0:01:53]} 25. Rh5 {[%clk 0:02:36]}  Be4 {[%clk 0:01:53]} 26. Qc1 {[%clk 0:02:36]}  Bg6 {[%clk 0:01:51]} 27. Rh4 {[%clk 0:02:36]}  Qe6 {[%clk 0:01:47]} 28. Bh3 {[%clk 0:02:31]}  Qe8 {[%clk 0:01:43]} 29. Rf4 {[%clk 0:02:29]}  Re4 {[%clk 0:01:39]} 30. Nh4 {[%clk 0:02:28]}  Bh5 {[%clk 0:01:33]} 31. Rf1 {[%clk 0:02:10]}  Be2 {[%clk 0:01:25]} 32. Bf5 {[%clk 0:02:10]}  Rxf4 {[%clk 0:01:17]} 33. Qxf4 {[%clk 0:02:11]}  Qf8 {[%clk 0:00:53]} 34. d7 {[%clk 0:01:55]}  Bxf1 {[%clk 0:00:50]} 35. Kxf1 {[%clk 0:01:56]}  Bc3 {[%clk 0:00:48]} 36. Qe4 {[%clk 0:01:43]}  Be5 {[%clk 0:00:43]} 37. Bxh7+ {[%clk 0:01:42]}  Kh8 {[%clk 0:00:44]} 38. Bf5 {[%clk 0:01:42]}  Qh6 {[%clk 0:00:38]} 39. Nf3 {[%clk 0:01:40]}  Bc7 {[%clk 0:00:19]} 40. Kg2 {[%clk 0:01:33]}  Kg8 {[%clk 0:00:15]} 41. Qe7 {[%clk 0:01:31]}  Qg7 {[%clk 0:00:13]} 42. Nh4 {[%clk 0:01:29]}  Rf8 {[%clk 0:00:13]} 43. Bh3 {[%clk 0:01:26]}  Bd8 {[%clk 0:00:13]} 44. Qe4 {[%clk 0:01:27]}  Qg5 {[%clk 0:00:13]} 45. Nf5 {[%clk 0:01:25]}  Kh8 {[%clk 0:00:13]} 46. Qe8 {[%clk 0:01:20]}  Kg8 {[%clk 0:00:11]} 47. f4 {[%clk 0:01:18]}  Qh5 {[%clk 0:00:09]} 48. Bg4 {[%clk 0:01:18]}  Qh7 {[%clk 0:00:08]} 49. h4 {[%clk 0:01:08]}  Qg6 {[%clk 0:00:08]} 50. Kh3 {[%clk 0:01:08]}  Qh7 {[%clk 0:00:06]} 51. h5 {[%clk 0:01:07]}  b5 {[%clk 0:00:06]} 52. Qe4 {[%clk 0:00:56]}  c4 {[%clk 0:00:03]} 53. bxc4 {[%clk 0:00:57]}  bxc4 {[%clk 0:00:04]} 54. Qxc4 {[%clk 0:00:58]}  Bb6 {[%clk 0:00:04]} 55. Qe4 {[%clk 0:00:56]}  Kh8 {[%clk 0:00:02]} 56. a4 {[%clk 0:00:54]}  Bd8 {[%clk 0:00:01]} 57. Qc6 {[%clk 0:00:54]}  Rg8 {[%clk 0:00:02]} 58. Qe4 {[%clk 0:00:50]}  Rf8 {[%clk 0:00:01]} 59. Qd4 {[%clk 0:00:47]}  Rg8 {[%clk 0:00:02]} 60. a5 {[%clk 0:00:47]}  Rf8 {[%clk 0:00:02]} 61. Qxa7 {[%clk 0:00:46]}  Rg8 {[%clk 0:00:03]} 62. Qd4 {[%clk 0:00:47]}  Rxg4 {[%clk 0:00:03]} 63. Kxg4 {[%clk 0:00:47]}  Qg8+ {[%clk 0:00:04]} 64. Kh3 {[%clk 0:00:47]}  Qh7 {[%clk 0:00:05]} 65. g4 {[%clk 0:00:47]}  Qg8 {[%clk 0:00:04]} 66. a6 {[%clk 0:00:47]}  Qf8 {[%clk 0:00:04]} 67. a7 {[%clk 0:00:48]}  Qa3+ {[%clk 0:00:05]} 68. Qe3 {[%clk 0:00:45]}  Qa5 {[%clk 0:00:00]} 69. Qe8+ {[%clk 0:00:45]} 1-0

[Event "January 2 Late 2024"]
[Site "https://www.chess.com"]
[Date "2024.01.02"]
[Round "7"]
[White "Tao, Sihan"]
[Black "Cardoso Cardoso, Jose Gabriel"]
[Result "0-1"]
[Board "58"]
[TimeControl "180+1"]
[WhiteFideId "30982677"]
[BlackFideId "4430492"]
[WhiteElo "2526"]
[BlackElo "2708"]
[WhiteTeam "USA"]
[BlackTeam "COL"]
[WhiteClock "0:01:28"]
[BlackClock "0:01:42"]

1. e4 {[%clk 0:02:59]}  c5 {[%clk 0:03:00]} 2. Nf3 {[%clk 0:02:57]}  Nc6 {[%clk 0:03:00]} 3. d4 {[%clk 0:02:57]}  cxd4 {[%clk 0:03:01]} 4. Nxd4 {[%clk 0:02:58]}  Qb6 {[%clk 0:03:02]} 5. Nb3 {[%clk 0:02:57]}  Nf6 {[%clk 0:03:02]} 6. Be3 {[%clk 0:02:57]}  Qc7 {[%clk 0:03:02]} 7. Nc3 {[%clk 0:02:58]}  e6 {[%clk 0:03:03]} 8. Qd2 {[%clk 0:02:41]}  Bb4 {[%clk 0:03:01]} 9. f3 {[%clk 0:02:41]}  d5 {[%clk 0:03:01]} 10. a3 {[%clk 0:02:33]}  Bxc3 {[%clk 0:02:58]} 11. Qxc3 {[%clk 0:02:34]}  dxe4 {[%clk 0:02:57]} 12. O-O-O {[%clk 0:02:33]}  O-O {[%clk 0:02:53]} 13. Kb1 {[%clk 0:02:29]}  Nd5 {[%clk 0:02:45]} 14. Qd2 {[%clk 0:02:27]}  Nxe3 {[%clk 0:02:44]} 15. Qxe3 {[%clk 0:02:27]}  Qe5 {[%clk 0:02:17]} 16. Nd4 {[%clk 0:02:15]}  exf3 {[%clk 0:02:11]} 17. Qxe5 {[%clk 0:01:58]}  Nxe5 {[%clk 0:02:12]} 18. Nxf3 {[%clk 0:01:59]}  Nxf3 {[%clk 0:02:09]} 19. gxf3 {[%clk 0:02:00]}  b6 {[%clk 0:02:09]} 20. Bg2 {[%clk 0:01:50]}  Bb7 {[%clk 0:02:06]} 21. Rd7 {[%clk 0:01:49]}  Bc6 {[%clk 0:02:05]} 22. Rc7 {[%clk 0:01:49]}  Rfc8 {[%clk 0:02:05]} 23. Rxc8+ {[%clk 0:01:49]}  Rxc8 {[%clk 0:02:04]} 24. Rd1 {[%clk 0:01:50]}  Kf8 {[%clk 0:02:03]} 25. Kc1 {[%clk 0:01:51]}  Ke7 {[%clk 0:02:03]} 26. c3 {[%clk 0:01:51]}  g5 {[%clk 0:01:58]} 27. Rd4 {[%clk 0:01:51]}  Rd8 {[%clk 0:01:53]} 28. Rxd8 {[%clk 0:01:40]}  Kxd8 {[%clk 0:01:53]} 29. h3 {[%clk 0:01:40]}  h5 {[%clk 0:01:52]} 30. Kd2 {[%clk 0:01:40]}  g4 {[%clk 0:01:50]} 31. hxg4 {[%clk 0:01:40]}  hxg4 {[%clk 0:01:50]} 32. Ke3 {[%clk 0:01:40]}  Bxf3 {[%clk 0:01:47]} 33. Bxf3 {[%clk 0:01:35]}  gxf3 {[%clk 0:01:48]} 34. Kxf3 {[%clk 0:01:36]}  b5 {[%clk 0:01:48]} 35. b3 {[%clk 0:01:33]}  Kd7 {[%clk 0:01:47]} 36. Ke4 {[%clk 0:01:33]}  Kd6 {[%clk 0:01:46]} 37. Kd4 {[%clk 0:01:31]}  e5+ {[%clk 0:01:45]} 38. Ke4 {[%clk 0:01:32]}  Ke6 {[%clk 0:01:44]} 39. Ke3 {[%clk 0:01:32]}  Kd5 {[%clk 0:01:44]} 40. Kd3 {[%clk 0:01:32]}  f5 {[%clk 0:01:44]} 41. Ke3 {[%clk 0:01:28]}  a5 {[%clk 0:01:42]} 0-1

[Event "January 2 Late 2024"]
[Site "https://www.chess.com"]
[Date "2024.01.02"]
[Round "7"]
[White "Ramos Rivera, Jesse James"]
[Black "Syaputra, Arifa Rizki"]
[Result "0-1"]
[Board "60"]
[TimeControl "180+1"]
[WhiteFideId "3103250"]
[BlackFideId "7105100"]
[WhiteElo "2494"]
[BlackElo "2698"]
[WhiteTeam "PUR"]
[BlackTeam "INA"]
[WhiteClock "0:00:10"]
[BlackClock "0:00:18"]

1. e4 {[%clk 0:02:58]}  c5 {[%clk 0:02:55]} 2. Nf3 {[%clk 0:02:57]}  Nc6 {[%clk 0:02:55]} 3. d4 {[%clk 0:02:56]}  cxd4 {[%clk 0:02:56]} 4. Nxd4 {[%clk 0:02:57]}  g6 {[%clk 0:02:57]} 5. Nc3 {[%clk 0:02:57]}  Bg7 {[%clk 0:02:57]} 6. Nde2 {[%clk 0:02:57]}  Nf6 {[%clk 0:02:57]} 7. g3 {[%clk 0:02:57]}  h5 {[%clk 0:02:48]} 8. h3 {[%clk 0:02:56]}  O-O {[%clk 0:02:22]} 9. Bg2 {[%clk 0:02:54]}  d6 {[%clk 0:02:23]} 10. O-O {[%clk 0:02:53]}  Bd7 {[%clk 0:02:17]} 11. Nd5 {[%clk 0:02:52]}  Rc8 {[%clk 0:02:12]} 12. c3 {[%clk 0:02:51]}  Nxd5 {[%clk 0:02:00]} 13. exd5 {[%clk 0:02:50]}  Ne5 {[%clk 0:02:01]} 14. b3 {[%clk 0:02:49]}  Bf5 {[%clk 0:02:01]} 15. Be3 {[%clk 0:02:39]}  Qd7 {[%clk 0:01:54]} 16. Kh2 {[%clk 0:02:35]}  h4 {[%clk 0:01:12]} 17. gxh4 {[%clk 0:02:12]}  Nd3 {[%clk 0:00:47]} 18. Qd2 {[%clk 0:02:00]}  Be5+ {[%clk 0:00:44]} 19. f4 {[%clk 0:01:55]}  Bf6 {[%clk 0:00:44]} 20. h5 {[%clk 0:01:46]}  gxh5 {[%clk 0:00:44]} 21. Ng3 {[%clk 0:01:46]}  h4 {[%clk 0:00:37]} 22. Nxf5 {[%clk 0:01:45]}  Qxf5 {[%clk 0:00:38]} 23. Rg1 {[%clk 0:01:40]}  Kh8 {[%clk 0:00:36]} 24. c4 {[%clk 0:01:33]}  Bxa1 {[%clk 0:00:27]} 25. Rxa1 {[%clk 0:01:32]}  e5 {[%clk 0:00:27]} 26. Rf1 {[%clk 0:01:06]}  Rce8 {[%clk 0:00:21]} 27. Kh1 {[%clk 0:00:58]}  e4 {[%clk 0:00:21]} 28. Bd4+ {[%clk 0:00:37]}  Kh7 {[%clk 0:00:21]} 29. Qe2 {[%clk 0:00:16]}  Rg8 {[%clk 0:00:19]} 30. Rd1 {[%clk 0:00:10]}  Rg3 {[%clk 0:00:18]} 0-1

[Event "January 2 Late 2024"]
[Site "https://www.chess.com"]
[Date "2024.01.02"]
[Round "7"]
[White "Sevgi, Volkan"]
[Black "Sztokbant, Bernardo Vainzoff"]
[Result "1-0"]
[Board "61"]
[TimeControl "180+1"]
[WhiteFideId "6325335"]
[BlackFideId "2115956"]
[WhiteElo "2685"]
[BlackElo "2487"]
[WhiteTeam "TUR"]
[BlackTeam "BRA"]
[WhiteClock "0:00:29"]
[BlackClock "0:00:04"]

1. e4 {[%clk 0:03:00]}  c5 {[%clk 0:02:55]} 2. Nc3 {[%clk 0:03:00]}  Nc6 {[%clk 0:02:54]} 3. f4 {[%clk 0:03:01]}  d6 {[%clk 0:02:50]} 4. Nf3 {[%clk 0:03:01]}  Bg4 {[%clk 0:02:48]} 5. Bb5 {[%clk 0:02:56]}  e6 {[%clk 0:02:46]} 6. O-O {[%clk 0:02:54]}  Nf6 {[%clk 0:02:39]} 7. h3 {[%clk 0:02:49]}  Bxf3 {[%clk 0:02:40]} 8. Qxf3 {[%clk 0:02:50]}  Qc7 {[%clk 0:02:29]} 9. e5 {[%clk 0:02:44]}  Nd7 {[%clk 0:02:22]} 10. Bxc6 {[%clk 0:02:12]}  Qxc6 {[%clk 0:02:07]} 11. Qxc6 {[%clk 0:02:11]}  bxc6 {[%clk 0:02:08]} 12. exd6 {[%clk 0:02:11]}  Bxd6 {[%clk 0:02:07]} 13. d3 {[%clk 0:02:08]}  O-O {[%clk 0:02:01]} 14. Be3 {[%clk 0:02:06]}  Rab8 {[%clk 0:01:59]} 15. b3 {[%clk 0:02:05]}  Nf6 {[%clk 0:01:59]} 16. Na4 {[%clk 0:02:02]}  Nd7 {[%clk 0:01:49]} 17. Rad1 {[%clk 0:01:52]}  Rfd8 {[%clk 0:01:43]} 18. g4 {[%clk 0:01:44]}  Kf8 {[%clk 0:01:41]} 19. Kg2 {[%clk 0:01:43]}  Ke7 {[%clk 0:01:40]} 20. f5 {[%clk 0:01:39]}  Rb4 {[%clk 0:01:28]} 21. c4 {[%clk 0:01:25]}  Rdb8 {[%clk 0:01:23]} 22. fxe6 {[%clk 0:01:17]}  fxe6 {[%clk 0:01:24]} 23. Bg5+ {[%clk 0:01:15]}  Nf6 {[%clk 0:01:22]} 24. Bh4 {[%clk 0:01:10]}  h6 {[%clk 0:01:19]} 25. Rde1 {[%clk 0:01:08]}  g5 {[%clk 0:01:11]} 26. Bf2 {[%clk 0:01:04]}  Nd7 {[%clk 0:01:09]} 27. Re2 {[%clk 0:01:04]}  Rxa4 {[%clk 0:01:00]} 28. bxa4 {[%clk 0:01:04]}  Rb4 {[%clk 0:01:01]} 29. Rfe1 {[%clk 0:01:04]}  e5 {[%clk 0:00:58]} 30. Bg3 {[%clk 0:00:52]}  Rxa4 {[%clk 0:00:57]} 31. Rb2 {[%clk 0:00:52]}  Ra3 {[%clk 0:00:52]} 32. Re3 {[%clk 0:00:49]}  Ke6 {[%clk 0:00:51]} 33. Kf3 {[%clk 0:00:46]}  Nb6 {[%clk 0:00:49]} 34. Rbe2 {[%clk 0:00:40]}  Nd7 {[%clk 0:00:46]} 35. h4 {[%clk 0:00:39]}  Rc3 {[%clk 0:00:36]} 36. hxg5 {[%clk 0:00:37]}  hxg5 {[%clk 0:00:37]} 37. Rh2 {[%clk 0:00:36]}  Ra3 {[%clk 0:00:36]} 38. Rh6+ {[%clk 0:00:35]}  Ke7 {[%clk 0:00:34]} 39. Rg6 {[%clk 0:00:33]}  Rxa2 {[%clk 0:00:29]} 40. Rxg5 {[%clk 0:00:33]}  Rd2 {[%clk 0:00:25]} 41. Rg7+ {[%clk 0:00:33]}  Ke6 {[%clk 0:00:24]} 42. Rg6+ {[%clk 0:00:31]}  Ke7 {[%clk 0:00:24]} 43. Bh4+ {[%clk 0:00:32]}  Ke8 {[%clk 0:00:19]} 44. Rxd6 {[%clk 0:00:32]}  a5 {[%clk 0:00:17]} 45. Rxc6 {[%clk 0:00:32]}  a4 {[%clk 0:00:12]} 46. Re6+ {[%clk 0:00:32]}  Kf8 {[%clk 0:00:12]} 47. Ra6 {[%clk 0:00:33]}  Ra2 {[%clk 0:00:11]} 48. Kg3 {[%clk 0:00:32]}  Ke8 {[%clk 0:00:10]} 49. Bf6 {[%clk 0:00:30]}  a3 {[%clk 0:00:09]} 50. Bxe5 {[%clk 0:00:30]}  Kf7 {[%clk 0:00:07]} 51. Ra7 {[%clk 0:00:28]}  Kg6 {[%clk 0:00:05]} 52. Rxd7 {[%clk 0:00:28]}  Ra1 {[%clk 0:00:04]} 53. Bxa1 {[%clk 0:00:27]}  a2 {[%clk 0:00:04]} 54. Re6+ {[%clk 0:00:28]}  Kg5 {[%clk 0:00:04]} 55. Rd5# {[%clk 0:00:29]} 1-0

[Event "January 2 Late 2024"]
[Site "https://www.chess.com"]
[Date "2024.01.02"]
[Round "7"]
[White "Fantinel, Thibault"]
[Black "Ghosh, Chanchal Kumer"]
[Result "1-0"]
[Board "64"]
[TimeControl "180+1"]
[WhiteFideId "663395"]
[BlackFideId "10201858"]
[WhiteElo "2673"]
[BlackElo "2151"]
[WhiteTeam "FRA"]
[BlackTeam "BAN"]
[WhiteClock "0:01:26"]
[BlackClock "0:00:06"]

1. e4 {[%clk 0:03:00]}  c5 {[%clk 0:02:56]} 2. Nf3 {[%clk 0:02:58]}  d6 {[%clk 0:02:56]} 3. d4 {[%clk 0:02:59]}  cxd4 {[%clk 0:02:57]} 4. Nxd4 {[%clk 0:03:00]}  Nf6 {[%clk 0:02:57]} 5. Nc3 {[%clk 0:03:00]}  a6 {[%clk 0:02:58]} 6. g3 {[%clk 0:03:01]}  e5 {[%clk 0:02:58]} 7. Nde2 {[%clk 0:03:01]}  Be7 {[%clk 0:02:58]} 8. Bg2 {[%clk 0:03:02]}  O-O {[%clk 0:02:59]} 9. O-O {[%clk 0:03:02]}  Be6 {[%clk 0:02:59]} 10. h3 {[%clk 0:03:02]}  Nbd7 {[%clk 0:03:00]} 11. g4 {[%clk 0:03:02]}  h6 {[%clk 0:02:58]} 12. Ng3 {[%clk 0:03:02]}  Rc8 {[%clk 0:02:59]} 13. Nf5 {[%clk 0:02:53]}  Bxf5 {[%clk 0:02:48]} 14. exf5 {[%clk 0:02:51]}  Qc7 {[%clk 0:02:42]} 15. Be3 {[%clk 0:02:46]}  b5 {[%clk 0:02:40]} 16. Rc1 {[%clk 0:02:45]}  Nb6 {[%clk 0:02:40]} 17. Bxb6 {[%clk 0:02:40]}  Qxb6 {[%clk 0:02:39]} 18. Nd5 {[%clk 0:02:40]}  Nxd5 {[%clk 0:02:35]} 19. Bxd5 {[%clk 0:02:39]}  Qc5 {[%clk 0:02:21]} 20. c3 {[%clk 0:02:37]}  Rc7 {[%clk 0:02:14]} 21. Qd3 {[%clk 0:02:36]}  Bg5 {[%clk 0:02:05]} 22. Rcd1 {[%clk 0:02:36]}  a5 {[%clk 0:02:02]} 23. Kg2 {[%clk 0:02:36]}  b4 {[%clk 0:02:02]} 24. c4 {[%clk 0:02:36]}  a4 {[%clk 0:02:02]} 25. Rfe1 {[%clk 0:02:30]}  a3 {[%clk 0:02:01]} 26. b3 {[%clk 0:02:29]}  Bh4 {[%clk 0:01:47]} 27. Re2 {[%clk 0:02:28]}  Re8 {[%clk 0:01:38]} 28. Qe4 {[%clk 0:02:28]}  Ree7 {[%clk 0:01:29]} 29. Rd3 {[%clk 0:02:28]}  Qa7 {[%clk 0:01:25]} 30. Qf3 {[%clk 0:02:18]}  Qb6 {[%clk 0:01:24]} 31. Re4 {[%clk 0:02:19]}  Re8 {[%clk 0:01:18]} 32. Qe2 {[%clk 0:02:19]}  Rf8 {[%clk 0:01:10]} 33. Rf3 {[%clk 0:02:15]}  Rc5 {[%clk 0:01:08]} 34. Qd2 {[%clk 0:02:14]}  Qd8 {[%clk 0:01:06]} 35. Rd3 {[%clk 0:02:10]}  Qf6 {[%clk 0:00:58]} 36. Qxb4 {[%clk 0:02:08]}  g6 {[%clk 0:00:53]} 37. Rf3 {[%clk 0:02:07]}  g5 {[%clk 0:00:46]} 38. Qxa3 {[%clk 0:02:05]}  h5 {[%clk 0:00:46]} 39. Qc1 {[%clk 0:01:54]}  Kg7 {[%clk 0:00:44]} 40. b4 {[%clk 0:01:53]}  Rc7 {[%clk 0:00:43]} 41. a4 {[%clk 0:01:54]}  Rh8 {[%clk 0:00:41]} 42. a5 {[%clk 0:01:53]}  Qh6 {[%clk 0:00:41]} 43. a6 {[%clk 0:01:51]}  hxg4 {[%clk 0:00:35]} 44. Rxg4 {[%clk 0:01:50]}  Qf6 {[%clk 0:00:30]} 45. b5 {[%clk 0:01:50]}  Rc5 {[%clk 0:00:27]} 46. a7 {[%clk 0:01:49]}  e4 {[%clk 0:00:17]} 47. Rxe4 {[%clk 0:01:41]}  Rxd5 {[%clk 0:00:15]} 48. cxd5 {[%clk 0:01:40]}  Qd8 {[%clk 0:00:12]} 49. f6+ {[%clk 0:01:37]}  Kg6 {[%clk 0:00:11]} 50. Re7 {[%clk 0:01:31]}  g4 {[%clk 0:00:10]} 51. Qc2+ {[%clk 0:01:29]}  Kh6 {[%clk 0:00:09]} 52. hxg4 {[%clk 0:01:28]}  Bxf6 {[%clk 0:00:08]} 53. Rxf6+ {[%clk 0:01:28]}  Kg7 {[%clk 0:00:06]} 54. Rfxf7+ {[%clk 0:01:26]} 1-0